[Event "EYCC G10-ch 2024"]
[Site "Prague"]
[Date "2024.08.25"]
[Round "4.10"]
[White "Aragonda, Sahasra"]
[Black "Rekhviashvili, Mariam"]
[Result "0-1"]
[ECO "D05"]
[WhiteElo "1617"]
[BlackElo "1542"]
[Annotator "NA"]
[PlyCount "108"]
[EventDate "2024.08.19"]
[EventType "swiss"]
[EventCountry "CZE"]
[SourceTitle "playchess.com"]
[Source "ChessBase"]
[SourceQuality "1"]
[TimeControl "5400+30"]

1. d4 {[%emt 0:00:03]} d5 {[%emt 0:00:05]} 2. Nf3 {[%emt 0:00:07]} e6 {[%emt 0:00:06]} 3. e3 {[%emt 0:00:08]} Nf6 {[%emt 0:00:06]} 4. Bd3 {[%emt 0:00:35]} Be7 {[%emt 0:00:49]} 5. b3 {[%emt 0:00:27]} O-O {[%emt 0:00:37]} 6. Bb2 {[%emt 0:00:41]} b6 {[%emt 0:02:22]} 7. Nbd2 {[%emt 0:00:31]} Bb7 {[%emt 0:00:44]} 8. O-O {[%emt 0:00:56]} c5 {[%emt 0:00:52]} 9. Ne5 {[%emt 0:02:21]} Nbd7 {[%emt 0:00:10]} 10. Qf3 {[%emt 0:05:43]} h6 {[%emt 0:20:38]} 11. Qh3 {[%emt 0:06:42]} Nxe5 {[%emt 0:01:12]} 12. dxe5 {[%emt 0:00:29]} Ne4 {[%emt 0:00:33]} 13. Rad1 {[%emt 0:08:13]} Qc8 {[%emt 0:09:18]} 14. c4 {[%emt 0:10:36]} Nxd2 {[%emt 0:01:09]} 15. Rxd2 {[%emt 0:00:22]} dxc4 {[%emt 0:00:21]} 16. Bxc4 {[%emt 0:03:56]} Rd8 {[%emt 0:03:51]} 17. Rfd1 {[%emt 0:07:15]} Rxd2 {[%emt 0:06:42]} 18. Rxd2 {[%emt 0:00:14]} Ba6 {[%emt 0:03:56]} 19. Qf3 {[%emt 0:18:11]} Bxc4 {[%emt 0:01:48]} 20. bxc4 {[%emt 0:00:10]} Rb8 {[%emt 0:01:55]} 21. Qd1 {[%emt 0:10:24]} Qc7 {[%emt 0:02:53]} 22. Kf1 {[%emt 0:03:09]} Rd8 {[%emt 0:00:26]} 23. Rxd8+ {[%emt 0:00:18]} Qxd8 {[%emt 0:00:07]} 24. Qxd8+ {[%emt 0:00:19]} Bxd8 {[%emt 0:00:17]} 25. g4 {[%emt 0:01:46]} Kf8 {[%emt 0:00:25]} 26. Ke2 {[%emt 0:00:32]} Ke7 {[%emt 0:00:41]} 27. Kd3 {[%emt 0:01:37]} Kd7 {[%emt 0:00:42]} 28. f4 {[%emt 0:02:05]} a6 {[%emt 0:01:08]} 29. a4 {[%emt 0:01:17]} Kc6 {[%emt 0:00:28]} 30. Kc2 {[%emt 0:03:57]} b5 {[%emt 0:04:49]} 31. cxb5+ {[%emt 0:00:56]} axb5 {[%emt 0:00:06]} 32. axb5+ {[%emt 0:00:36]} Kxb5 {[%emt 0:00:03]} 33. Kc3 {[%emt 0:00:49]} Ba5+ {[%emt 0:00:06]} 34. Kc2 {[%emt 0:00:38]} c4 {[%emt 0:09:48]} 35. e4 {[%emt 0:04:12]} Be1 {[%emt 0:02:54]} 36. f5 {[%emt 0:00:40]} Kb4 {[%emt 0:00:08]} 37. Bc1 {[%emt 0:00:55]} c3 {[%emt 0:07:13]} 38. g5 {[%emt 0:01:04]} hxg5 {[%emt 0:02:23]} 39. Bxg5 {[%emt 0:00:15]} Kc4 {[%emt 0:00:42]} 40. fxe6 {[%emt 0:02:00]} fxe6 {[%emt 0:00:06]} 41. Be3 {[%emt 0:00:19]} Bd2 {[%emt 0:01:05]} 42. Bf2 {[%emt 0:02:18]} Bf4 {[%emt 0:00:30]} 43. h3 {[%emt 0:00:06]} Bxe5 {[%emt 0:00:08]} 44. h4 {[%emt 0:00:20]} g6 {[%emt 0:00:07]} 45. Be3 {[%emt 0:01:08]} Bg3 {[%emt 0:00:35]} 46. Bg5 {[%emt 0:00:36]} Kd4 {[%emt 0:00:09]} 47. Bf6+ {[%emt 0:00:47]} e5 {[%emt 0:00:08]} 48. Bg5 {[%emt 0:00:24]} Be1 {[%emt 0:01:08]} 49. Kd1 {[%emt 0:00:45]} Bd2 {[%emt 0:00:43]} 50. Bxd2 {[%emt 0:00:38]} cxd2 {[%emt 0:00:12]} 51. Kxd2 {[%emt 0:00:07]} Kxe4 {[%emt 0:00:11]} 52. Ke2 {[%emt 0:00:09]} Kf4 {[%emt 0:00:11]} 53. Kf2 {[%emt 0:00:20]} Kg4 {[%emt 0:00:07]} 54. Ke3 {[%emt 0:00:12]} Kxh4 {[%emt 0:00:13]} 0-1

[Event "EYCC G10-ch 2024"]
[Site "Prague"]
[Date "2024.08.25"]
[Round "4.11"]
[White "Saltkhutsishvili, Sara"]
[Black "Slusarczyk, Agnieszka"]
[Result "0-1"]
[ECO "C50"]
[WhiteElo "1535"]
[BlackElo "1614"]
[Annotator "NA"]
[PlyCount "92"]
[EventDate "2024.08.19"]
[EventType "swiss"]
[EventCountry "CZE"]
[SourceTitle "playchess.com"]
[Source "ChessBase"]
[SourceQuality "1"]
[TimeControl "5400+30"]

1. e4 {[%emt 0:00:05]} e5 {[%emt 0:00:07]} 2. Nf3 {[%emt 0:00:29]} Nc6 {[%emt 0:00:11]} 3. Bc4 {[%emt 0:00:48]} Nf6 {[%emt 0:00:22]} 4. d3 {[%emt 0:01:30]} Bc5 {[%emt 0:00:36]} 5. c3 {[%emt 0:02:02]} d6 {[%emt 0:01:17]} 6. O-O {[%emt 0:03:31]} a6 {[%emt 0:02:06]} 7. b4 {[%emt 0:04:30]} Ba7 {[%emt 0:00:45]} 8. a4 {[%emt 0:02:01]} Be6 {[%emt 0:04:52]} 9. Bxe6 {[%emt 0:08:54]} fxe6 {[%emt 0:00:39]} 10. Bg5 {[%emt 0:02:38]} O-O {[%emt 0:03:38]} 11. Nbd2 {[%emt 0:05:56]} Ne7 {[%emt 0:01:22]} 12. d4 {[%emt 0:04:26]} exd4 {[%emt 0:04:19]} 13. cxd4 {[%emt 0:02:27]} Qe8 {[%emt 0:03:02]} 14. Bxf6 {[%emt 0:11:23]} Rxf6 {[%emt 0:00:34]} 15. Nb3 {[%emt 0:02:16]} Nc6 {[%emt 0:01:13]} 16. Qd2 {[%emt 0:05:13]} Qg6 {[%emt 0:00:54]} 17. b5 {[%emt 0:01:33]} Rxf3 {[%emt 0:01:10]} 18. bxc6 {[%emt 0:04:35]} Rxb3 {[%emt 0:00:20]} 19. Qc2 {[%emt 0:00:50]} Rb6 {[%emt 0:00:26]} 20. cxb7 {[%emt 0:00:31]} Rxb7 {[%emt 0:00:09]} 21. Qc6 {[%emt 0:00:54]} Rab8 {[%emt 0:00:30]} 22. Qxa6 {[%emt 0:02:12]} Bxd4 {[%emt 0:00:23]} 23. Rae1 {[%emt 0:02:36]} Qf6 {[%emt 0:01:09]} 24. Qc4 {[%emt 0:03:16]} c5 {[%emt 0:01:14]} 25. Kh1 {[%emt 0:01:37]} Rb4 {[%emt 0:01:47]} 26. Qa6 {[%emt 0:03:32]} e5 {[%emt 0:02:42]} 27. Rd1 {[%emt 0:03:19]} Rb2 {[%emt 0:00:43]} 28. a5 {[%emt 0:02:59]} Qg6 {[%emt 0:04:05]} 29. Qc6 {[%emt 0:01:56]} R2b5 {[%emt 0:04:41]} 30. a6 {[%emt 0:04:10]} Qf7 {[%emt 0:01:45]} 31. Qxd6 {[%emt 0:03:12]} R5b6 {[%emt 0:00:27]} 32. a7 {[%emt 0:01:49]} Qxa7 {[%emt 0:00:11]} 33. Qd5+ {[%emt 0:00:08]} Qf7 {[%emt 0:00:16]} 34. Qxf7+ {[%emt 0:00:33]} Kxf7 {[%emt 0:00:07]} 35. f4 {[%emt 0:00:14]} exf4 {[%emt 0:00:36]} 36. Rxf4+ {[%emt 0:00:10]} Rf6 {[%emt 0:00:07]} 37. Rh4 {[%emt 0:00:29]} h6 {[%emt 0:00:22]} 38. Rh5 {[%emt 0:00:40]} Rfb6 {[%emt 0:00:41]} 39. Rf5+ {[%emt 0:01:30]} Kg8 {[%emt 0:00:11]} 40. Rff1 {[%emt 0:00:14]} Re8 {[%emt 0:00:25]} 41. Rf4 {[%emt 0:00:15]} Rf6 {[%emt 0:00:23]} 42. Rg4 {[%emt 0:01:10]} Rfe6 {[%emt 0:00:38]} 43. Re1 {[%emt 0:00:14]} c4 {[%emt 0:01:11]} 44. h3 {[%emt 0:00:49]} c3 {[%emt 0:00:25]} 45. Kh2 {[%emt 0:01:15]} c2 {[%emt 0:00:10]} 46. Rc1 {[%emt 0:00:30]} Rc6 0-1

[Event "EYCC G10-ch 2024"]
[Site "Prague"]
[Date "2024.08.25"]
[Round "4.13"]
[White "Russieva, Svitlana"]
[Black "Matos, Maria Rita"]
[Result "1-0"]
[ECO "C52"]
[WhiteElo "1597"]
[BlackElo "1453"]
[Annotator "NA"]
[PlyCount "107"]
[EventDate "2024.08.19"]
[EventType "swiss"]
[EventCountry "CZE"]
[SourceTitle "playchess.com"]
[Source "ChessBase"]
[SourceQuality "1"]
[TimeControl "5400+30"]

1. e4 {[%emt 0:00:02]} e5 {[%emt 0:00:32]} 2. Nf3 {[%emt 0:00:08]} Nc6 {[%emt 0:00:43]} 3. Bc4 {[%emt 0:00:11]} Bc5 {[%emt 0:00:14]} 4. b4 {[%emt 0:00:10]} Bxb4 {[%emt 0:00:12]} 5. c3 {[%emt 0:00:09]} Ba5 {[%emt 0:00:13]} 6. d4 {[%emt 0:01:33]} d6 {[%emt 0:01:56]} 7. Qb3 {[%emt 0:03:54]} Qd7 {[%emt 0:05:03]} 8. Bg5 {[%emt 0:06:07]} Bb6 {[%emt 0:05:01]} 9. Bb5 {[%emt 0:04:07]} a6 {[%emt 0:08:49]} 10. Ba4 {[%emt 0:01:03]} exd4 {[%emt 0:00:54]} 11. Bxc6 {[%emt 0:10:34]} Qxc6 {[%emt 0:03:29]} 12. cxd4 {[%emt 0:05:17]} Qxe4+ {[%emt 0:06:34]} 13. Kd1 {[%emt 0:02:58]} Qg6 {[%emt 0:07:27]} 14. Re1+ {[%emt 0:02:14]} Be6 {[%emt 0:05:33]} 15. d5 {[%emt 0:02:33]} Nf6 {[%emt 0:07:10]} 16. dxe6 {[%emt 0:10:28]} O-O {[%emt 0:03:39]} 17. exf7+ {[%emt 0:01:36]} Qxf7 {[%emt 0:01:07]} 18. Re7 {[%emt 0:02:28]} Qxb3+ {[%emt 0:00:26]} 19. axb3 {[%emt 0:00:11]} Rad8 {[%emt 0:00:47]} 20. Bh4 {[%emt 0:03:07]} d5 {[%emt 0:01:33]} 21. Nbd2 {[%emt 0:01:36]} d4 {[%emt 0:01:55]} 22. Ne5 {[%emt 0:06:39]} h6 {[%emt 0:03:23]} 23. Bxf6 {[%emt 0:06:32]} Rxf6 {[%emt 0:01:29]} 24. Ne4 {[%emt 0:00:52]} Rff8 {[%emt 0:01:04]} 25. Ng6 {[%emt 0:07:44]} Rfe8 {[%emt 0:00:35]} 26. Kd2 {[%emt 0:01:44]} Rxe7 {[%emt 0:01:35]} 27. Nxe7+ {[%emt 0:00:12]} Kf7 {[%emt 0:00:29]} 28. Nf5 {[%emt 0:00:10]} d3 {[%emt 0:00:38]} 29. b4 {[%emt 0:00:10]} Kg6 {[%emt 0:01:46]} 30. g4 {[%emt 0:00:22]} Rd7 {[%emt 0:01:06]} 31. Re1 {[%emt 0:00:29]} a5 {[%emt 0:00:37]} 32. bxa5 {[%emt 0:01:27]} Bxa5+ {[%emt 0:00:12]} 33. Nc3 {[%emt 0:00:07]} Kf6 {[%emt 0:00:54]} 34. Re3 {[%emt 0:00:39]} Bb6 {[%emt 0:01:37]} 35. Rxd3 {[%emt 0:00:09]} Rxd3+ {[%emt 0:00:09]} 36. Kxd3 {[%emt 0:00:04]} Bxf2 {[%emt 0:00:10]} 37. Ne4+ {[%emt 0:00:09]} Ke5 {[%emt 0:00:23]} 38. Nxf2 {[%emt 0:00:14]} Kf6 {[%emt 0:00:21]} 39. Ne4+ {[%emt 0:00:15]} Kg6 {[%emt 0:00:12]} 40. h4 {[%emt 0:00:10]} Kh7 {[%emt 0:00:12]} 41. Ne7 {[%emt 0:00:35]} b6 {[%emt 0:00:33]} 42. Kc4 {[%emt 0:00:43]} c5 {[%emt 0:00:42]} 43. Kb5 {[%emt 0:00:03]} c4 {[%emt 0:00:13]} 44. Kxc4 {[%emt 0:00:05]} Kh8 {[%emt 0:00:13]} 45. h5 {[%emt 0:01:00]} Kh7 {[%emt 0:00:12]} 46. Nc3 {[%emt 0:00:36]} g5 {[%emt 0:00:56]} 47. hxg6+ {[%emt 0:00:12]} Kh8 {[%emt 0:00:11]} 48. Kd5 {[%emt 0:00:32]} Kg7 {[%emt 0:00:16]} 49. Ke6 {[%emt 0:00:15]} b5 {[%emt 0:00:10]} 50. Nxb5 {[%emt 0:00:53]} Kh8 {[%emt 0:00:09]} 51. Kf7 {[%emt 0:00:15]} h5 {[%emt 0:00:27]} 52. g7+ {[%emt 0:00:07]} Kh7 {[%emt 0:00:10]} 53. g8=Q+ {[%emt 0:00:24]} Kh6 {[%emt 0:00:08]} 54. Nf5# {[%emt 0:00:07]} 1-0

[Event "EYCC G10-ch 2024"]
[Site "Prague"]
[Date "2024.08.26"]
[Round "5.1"]
[White "Chen, Yuefan"]
[Black "Ahmadli, Mehriban"]
[Result "1/2-1/2"]
[ECO "A48"]
[WhiteElo "1682"]
[BlackElo "1646"]
[Annotator "NA RC COMBH"]
[PlyCount "52"]
[EventDate "2024.08.19"]
[EventType "swiss"]
[EventCountry "CZE"]
[SourceTitle "playchess.com"]
[Source "ChessBase"]
[SourceQuality "1"]
[TimeControl "5400+30"]

1. d4 {[%emt 0:00:02]} Nf6 {[%emt 0:00:01]} 2. Nf3 {[%emt 0:00:14]} g6 {[%emt 0:00:22]} 3. c4 {[%emt 0:00:06]} Bg7 {[%emt 0:00:06]} 4. g3 {[%emt 0:04:10]} O-O {[%emt 0:00:14]} 5. Bg2 {[%emt 0:00:05]} d6 {[%emt 0:00:21]} 6. O-O {[%emt 0:00:20]} c5 {[%emt 0:05:07]} 7. dxc5 {[%emt 0:07:24]} dxc5 {[%emt 0:00:35]} 8. Nc3 {[%emt 0:03:07]} Nbd7 9. Qc2 {[%emt 0:04:32]} a6 {[%emt 0:22:51]} 10. Rd1 {[%emt 0:04:06]} Qc7 {[%emt 0:03:42]} 11. h3 {[%emt 0:05:58]} e5 {[%emt 0:07:14]} 12. b3 {[%emt 0:06:06]} Rb8 {[%emt 0:04:35]} 13. a4 {[%emt 0:06:28]} Re8 {[%emt 0:10:03]} 14. Ng5 {[%emt 0:10:55]} h6 {[%emt 0:11:33]} 15. Nge4 {[%emt 0:01:44]} Nxe4 {[%emt 0:01:08]} 16. Nxe4 {[%emt 0:01:31]} b6 {[%emt 0:07:12]} 17. Nd6 {[%emt 0:06:20]} Re6 {[%emt 0:05:28]} 18. Qd2 {[%emt 0:11:37]} Nf6 {[%emt 0:02:52]} 19. h4 {[%emt 0:04:21]} Ne8 {[%emt 0:01:50]} 20. Nxc8 {[%emt 0:05:31]} Rxc8 {[%emt 0:01:17]} 21. Bd5 {[%emt 0:03:00]} Rd6 {[%emt 0:02:01]} 22. Bb2 {[%emt 0:01:06]} Kh7 {[%emt 0:04:37]} 23. Qe3 {[%emt 0:03:55]} f6 {[%emt 0:00:49]} 24. Rd3 {[%emt 0:03:31]} Rcd8 {[%emt 0:02:02]} 25. Rad1 {[%emt 0:00:55]} R6d7 {[%emt 0:00:51]} 26. Qd2 {[%emt 0:00:34]} Rd6 {[%emt 0:01:03]} 1/2-1/2

[Event "EYCC G10-ch 2024"]
[Site "Prague"]
[Date "2024.08.26"]
[Round "5.2"]
[White "Stoica, Melina-Theodora"]
[Black "Bakhshi, Rana"]
[Result "0-1"]
[ECO "D37"]
[WhiteElo "1576"]
[BlackElo "1732"]
[Annotator "NA RC COMBH"]
[PlyCount "80"]
[EventDate "2024.08.19"]
[EventType "swiss"]
[EventCountry "CZE"]
[SourceTitle "playchess.com"]
[Source "ChessBase"]
[SourceQuality "1"]
[TimeControl "5400+30"]

1. d4 {[%emt 0:00:05]} d5 {[%emt 0:01:00]} 2. Nf3 {[%emt 0:00:10]} Nf6 {[%emt 0:00:20]} 3. c4 {[%emt 0:00:12]} e6 {[%emt 0:02:16]} 4. Nc3 {[%emt 0:10:34]} Bd6 {[%emt 0:06:11]} 5. e3 {[%emt 0:22:13]} c6 {[%emt 0:10:38]} 6. Be2 {[%emt 0:03:14]} dxc4 {[%emt 0:03:24]} 7. Bxc4 {[%emt 0:00:20]} b5 {[%emt 0:01:53]} 8. Bd3 {[%emt 0:03:59]} Bb7 {[%emt 0:05:21]} 9. O-O {[%emt 0:01:32]} h6 {[%emt 0:04:23]} 10. Ne4 {[%emt 0:33:42]} Nxe4 {[%emt 0:05:37]} 11. Bxe4 {[%emt 0:00:46]} O-O {[%emt 0:04:49]} 12. b3 {[%emt 0:07:49]} f5 {[%emt 0:04:50]} 13. Bc2 {[%emt 0:02:42]} Nd7 {[%emt 0:04:37]} 14. Bb2 {[%emt 0:00:29]} Qe7 {[%emt 0:04:29]} 15. Rc1 {[%emt 0:03:59]} g5 {[%emt 0:03:21]} 16. e4 {[%emt 0:01:25]} g4 {[%emt 0:04:40]} 17. Ne1 {[%emt 0:01:05]} Qg5 {[%emt 0:03:19]} 18. e5 {[%emt 0:01:35]} Bc7 {[%emt 0:01:36]} 19. Qd3 {[%emt 0:00:32]} Nb6 {[%emt 0:03:51]} 20. b4 {[%emt 0:01:10]} Nd5 {[%emt 0:02:42]} 21. Bb3 {[%emt 0:01:25]} f4 {[%emt 0:04:38]} 22. Bxd5 {[%emt 0:00:39]} exd5 {[%emt 0:00:22]} 23. f3 {[%emt 0:00:54]} a5 {[%emt 0:01:21]} 24. bxa5 {[%emt 0:00:17]} Rxa5 {[%emt 0:00:16]} 25. a3 {[%emt 0:00:05]} b4 {[%emt 0:00:37]} 26. axb4 {[%emt 0:00:29]} Ra2 {[%emt 0:00:23]} 27. Rb1 {[%emt 0:00:20]} Ba6 {[%emt 0:00:22]} 28. Qb3 {[%emt 0:00:14]} Bc4 {[%emt 0:00:06]} 29. Qc3 {[%emt 0:00:26]} Bxf1 {[%emt 0:00:08]} 30. Kxf1 {[%emt 0:00:04]} Qg6 {[%emt 0:01:03]} 31. Rc1 {[%emt 0:00:21]} Bd8 {[%emt 0:01:37]} 32. Rc2 {[%emt 0:01:35]} Bh4 {[%emt 0:00:52]} 33. fxg4 {[%emt 0:00:47]} Bxe1 {[%emt 0:00:33]} 34. Kxe1 {[%emt 0:00:06]} Qe4+ {[%emt 0:00:36]} 35. Kf2 {[%emt 0:01:10]} f3 {[%emt 0:03:46]} 36. g3 {[%emt 0:00:11]} Qg6 {[%emt 0:01:44]} 37. Qb3 {[%emt 0:01:11]} h5 {[%emt 0:01:17]} 38. gxh5 {[%emt 0:00:26]} Qxh5 {[%emt 0:01:01]} 39. Kg1 {[%emt 0:00:26]} f2+ {[%emt 0:00:58]} 40. Kf1 {[%emt 0:00:53]} Qh3+ {[%emt 0:00:09]} 0-1

[Event "EYCC G10-ch 2024"]
[Site "Prague"]
[Date "2024.08.26"]
[Round "5.3"]
[White "Rzadkowska, Lila"]
[Black "Horodna, Anna"]
[Result "1-0"]
[ECO "D20"]
[WhiteElo "1794"]
[BlackElo "1603"]
[Annotator "NA RC COMBH"]
[PlyCount "57"]
[EventDate "2024.08.19"]
[EventType "swiss"]
[EventCountry "CZE"]
[SourceTitle "playchess.com"]
[Source "ChessBase"]
[SourceQuality "1"]
[TimeControl "5400+30"]

1. d4 {[%emt 0:00:02]} d5 {[%emt 0:00:10]} 2. c4 dxc4 {[%emt 0:00:47]} 3. e3 {[%emt 0:00:48]} e5 {[%emt 0:00:52]} 4. Bxc4 {[%emt 0:01:48]} exd4 {[%emt 0:01:04]} 5. exd4 {[%emt 0:01:53]} Nc6 {[%emt 0:02:25]} 6. Nf3 {[%emt 0:01:38]} Be7 {[%emt 0:01:23]} 7. d5 {[%emt 0:05:44]} Bb4+ {[%emt 0:03:02]} 8. Nc3 {[%emt 0:02:45]} Qe7+ {[%emt 0:02:28]} 9. Be3 {[%emt 0:00:58]} Na5 {[%emt 0:01:59]} 10. Be2 {[%emt 0:04:24]} c6 {[%emt 0:08:30]} 11. O-O {[%emt 0:01:22]} Bxc3 {[%emt 0:00:20]} 12. bxc3 {[%emt 0:00:13]} cxd5 {[%emt 0:00:06]} 13. Qxd5 {[%emt 0:00:48]} Nc6 {[%emt 0:00:43]} 14. Bc5 {[%emt 0:02:35]} Be6 {[%emt 0:03:45]} 15. Qh5 {[%emt 0:05:40]} Qf6 {[%emt 0:04:24]} 16. Nd4 {[%emt 0:05:25]} Bd7 {[%emt 0:11:16]} 17. Nb5 {[%emt 0:03:47]} g6 {[%emt 0:04:14]} 18. Qd5 {[%emt 0:01:53]} O-O-O {[%emt 0:01:11]} 19. Nd6+ {[%emt 0:04:06]} Kc7 {[%emt 0:00:48]} 20. Rab1 {[%emt 0:02:14]} b6 {[%emt 0:00:41]} 21. Nb5+ {[%emt 0:00:54]} Kc8 {[%emt 0:03:32]} 22. Nxa7+ {[%emt 0:00:26]} Kb8 {[%emt 0:01:00]} 23. Rxb6+ {[%emt 0:00:58]} Ka8 {[%emt 0:00:46]} 24. Nxc6 {[%emt 0:00:35]} Bxc6 {[%emt 0:00:35]} 25. Qxc6+ {[%emt 0:00:07]} Qxc6 {[%emt 0:00:04]} 26. Rxc6 {[%emt 0:00:05]} Nh6 {[%emt 0:00:59]} 27. Rb1 {[%emt 0:00:15]} Rd7 {[%emt 0:01:03]} 28. Ra6+ {[%emt 0:00:09]} Ra7 {[%emt 0:00:03]} 29. Bf3# {[%emt 0:00:11]} 1-0

[Event "EYCC G10-ch 2024"]
[Site "Prague"]
[Date "2024.08.26"]
[Round "5.4"]
[White "Wang, Yi Xuan"]
[Black "Russieva, Svitlana"]
[Result "1/2-1/2"]
[ECO "D32"]
[WhiteElo "1734"]
[BlackElo "1597"]
[Annotator "NA COMBH"]
[PlyCount "131"]
[EventDate "2024.08.19"]
[EventType "swiss"]
[EventCountry "CZE"]
[SourceTitle "playchess.com"]
[Source "ChessBase"]
[SourceQuality "1"]
[TimeControl "5400+30"]

1. d4 {[%emt 0:00:03]} d5 {[%emt 0:00:05]} 2. c4 {[%emt 0:00:05]} e6 {[%emt 0:00:08]} 3. Nc3 {[%emt 0:00:06]} c5 {[%emt 0:00:28]} 4. cxd5 {[%emt 0:00:05]} cxd4 {[%emt 0:00:14]} 5. Qa4+ {[%emt 0:00:24]} Bd7 {[%emt 0:03:22]} 6. Qxd4 {[%emt 0:00:10]} exd5 {[%emt 0:02:23]} 7. Qxd5 {[%emt 0:02:29]} Nc6 {[%emt 0:00:46]} 8. e4 {[%emt 0:01:06]} Nf6 {[%emt 0:00:41]} 9. Qd1 {[%emt 0:00:58]} Bb4 {[%emt 0:00:54]} 10. Bg5 {[%emt 0:14:32]} h6 {[%emt 0:03:03]} 11. Bxf6 {[%emt 0:03:51]} Qxf6 {[%emt 0:00:48]} 12. Rc1 {[%emt 0:02:28]} Rd8 {[%emt 0:01:57]} 13. Qf3 {[%emt 0:03:22]} Qe6 {[%emt 0:03:55]} 14. a3 {[%emt 0:07:41]} Nd4 {[%emt 0:03:07]} 15. Qe3 {[%emt 0:02:45]} Bc5 {[%emt 0:01:15]} 16. Qg3 {[%emt 0:01:46]} O-O {[%emt 0:05:01]} 17. Nge2 {[%emt 0:05:06]} Nb3 {[%emt 0:05:54]} 18. Rd1 {[%emt 0:02:10]} Bc6 {[%emt 0:00:43]} 19. Rxd8 {[%emt 0:04:21]} Rxd8 {[%emt 0:00:42]} 20. Nf4 {[%emt 0:02:51]} Qd7 {[%emt 0:02:42]} 21. Ncd5 {[%emt 0:01:43]} Bxd5 {[%emt 0:04:23]} 22. Nxd5 {[%emt 0:01:05]} Qa4 {[%emt 0:00:41]} 23. Be2 {[%emt 0:04:20]} Qa5+ {[%emt 0:01:29]} 24. Qc3 {[%emt 0:02:11]} Qa4 {[%emt 0:02:22]} 25. O-O {[%emt 0:01:01]} Qxe4 {[%emt 0:00:30]} 26. Bf3 {[%emt 0:02:13]} Qa4 {[%emt 0:21:03]} 27. Bd1 {[%emt 0:00:54]} Qa6 {[%emt 0:01:06]} 28. Bxb3 {[%emt 0:00:32]} b6 {[%emt 0:02:28]} 29. Qf3 {[%emt 0:05:00]} Kh8 {[%emt 0:01:50]} 30. Qxf7 {[%emt 0:01:34]} Rf8 {[%emt 0:00:36]} 31. Qg6 {[%emt 0:00:31]} Qe2 {[%emt 0:02:57]} 32. Ne3 {[%emt 0:11:52]} Bxe3 {[%emt 0:01:00]} 33. Bf7 {[%emt 0:00:23]} Bc5 {[%emt 0:02:03]} 34. b4 {[%emt 0:00:54]} Bd4 {[%emt 0:01:13]} 35. Qd6 {[%emt 0:02:35]} Bxf2+ {[%emt 0:01:34]} 36. Rxf2 {[%emt 0:00:32]} Qe1+ {[%emt 0:00:37]} 37. Rf1 {[%emt 0:00:10]} Qe3+ {[%emt 0:00:04]} 38. Kh1 {[%emt 0:02:43]} Rxf7 {[%emt 0:00:42]} 39. Rd1 {[%emt 0:01:36]} Rf2 {[%emt 0:02:56]} 40. Qg6 {[%emt 0:01:24]} Rd2 {[%emt 0:00:51]} 41. Rc1 {[%emt 0:00:53]} Rd8 {[%emt 0:01:45]} 42. Rf1 {[%emt 0:00:51]} Qf2 {[%emt 0:02:15]} 43. Rg1 {[%emt 0:00:48]} Rf8 {[%emt 0:00:24]} 44. h3 {[%emt 0:00:23]} Qe3 {[%emt 0:00:23]} 45. Qd6 {[%emt 0:00:17]} Rg8 {[%emt 0:00:49]} 46. a4 Qa3 47. Qd7 {[%emt 0:00:54]} a6 {[%emt 0:00:43]} 48. Qb7 {[%emt 0:00:21]} Qxb4 {[%emt 0:00:29]} 49. Qxa6 {[%emt 0:00:13]} Re8 {[%emt 0:00:22]} 50. Ra1 {[%emt 0:00:41]} Qb2 51. Rf1 {[%emt 0:00:18]} Qd4 {[%emt 0:02:08]} 52. Qb5 {[%emt 0:01:00]} Qe4 {[%emt 0:00:08]} 53. Qxb6 {[%emt 0:00:19]} Qxa4 54. Qg6 {[%emt 0:00:30]} Qb5 {[%emt 0:00:57]} 55. Rb1 {[%emt 0:01:02]} Qe2 {[%emt 0:02:49]} 56. Rb7 {[%emt 0:00:09]} Qe1+ 57. Kh2 {[%emt 0:00:30]} Qe5+ {[%emt 0:00:46]} 58. Qg3 Qxg3+ {[%emt 0:01:47]} 59. Kxg3 {[%emt 0:00:13]} Kh7 {[%emt 0:00:06]} 60. Kh4 {[%emt 0:00:11]} Kg6 {[%emt 0:00:14]} 61. g4 {[%emt 0:00:57]} Re6 {[%emt 0:00:15]} 62. Rb3 {[%emt 0:00:26]} Rd6 {[%emt 0:00:01]} 63. Rf3 {[%emt 0:00:30]} Re6 64. Kg3 {[%emt 0:01:50]} Rd6 {[%emt 0:01:50]} 65. h4 Rd5 {[%emt 0:00:43]} 66. Rc3 {[%emt 0:01:24]} 1/2-1/2

[Event "EYCC G10-ch 2024"]
[Site "Prague"]
[Date "2024.08.26"]
[Round "5.5"]
[White "Nguyen Doan, Bao Anh Angelina"]
[Black "Paunescu, Aida"]
[Result "1/2-1/2"]
[ECO "C28"]
[WhiteElo "1659"]
[BlackElo "1603"]
[Annotator "NA RC COMBH"]
[PlyCount "91"]
[EventDate "2024.08.19"]
[EventType "swiss"]
[EventCountry "CZE"]
[SourceTitle "playchess.com"]
[Source "ChessBase"]
[SourceQuality "1"]
[TimeControl "5400+30"]

1. e4 {[%emt 0:00:04]} e5 {[%emt 0:00:07]} 2. Nc3 {[%emt 0:00:44]} Nc6 {[%emt 0:00:26]} 3. Bc4 {[%emt 0:00:13]} Nf6 {[%emt 0:02:14]} 4. d3 {[%emt 0:00:48]} Bb4 {[%emt 0:01:58]} 5. Nge2 {[%emt 0:01:25]} O-O {[%emt 0:02:13]} 6. O-O {[%emt 0:02:11]} d6 {[%emt 0:02:20]} 7. Bg5 {[%emt 0:04:44]} h6 {[%emt 0:02:50]} 8. Bh4 {[%emt 0:00:40]} Bg4 {[%emt 0:02:09]} 9. Nd5 {[%emt 0:03:06]} g5 {[%emt 0:07:50]} 10. Bg3 {[%emt 0:05:15]} Nxd5 {[%emt 0:07:31]} 11. Bxd5 {[%emt 0:06:19]} Bc5 {[%emt 0:07:47]} 12. c3 {[%emt 0:04:35]} Ne7 {[%emt 0:09:15]} 13. Bc4 {[%emt 0:01:38]} Be6 14. Bxe6 {[%emt 0:10:07]} fxe6 {[%emt 0:04:21]} 15. d4 {[%emt 0:01:13]} exd4 {[%emt 0:02:24]} 16. cxd4 {[%emt 0:02:38]} Bb6 {[%emt 0:00:29]} 17. Qd3 {[%emt 0:04:18]} Qd7 {[%emt 0:04:28]} 18. h4 {[%emt 0:03:25]} d5 {[%emt 0:05:39]} 19. f3 {[%emt 0:08:53]} Rf7 {[%emt 0:04:10]} 20. Qd2 {[%emt 0:04:20]} Rg7 {[%emt 0:01:40]} 21. Be5 {[%emt 0:02:19]} Rg6 {[%emt 0:01:57]} 22. h5 {[%emt 0:02:09]} Rg7 {[%emt 0:00:50]} 23. Bxg7 {[%emt 0:00:32]} Kxg7 {[%emt 0:00:11]} 24. f4 {[%emt 0:02:33]} g4 {[%emt 0:02:51]} 25. Qd3 {[%emt 0:02:29]} Rf8 {[%emt 0:03:45]} 26. Rad1 {[%emt 0:05:01]} c6 {[%emt 0:02:25]} 27. Ng3 {[%emt 0:05:10]} dxe4 {[%emt 0:02:17]} 28. Qxe4 {[%emt 0:01:50]} Nf5 {[%emt 0:02:02]} 29. Kh2 {[%emt 0:04:31]} Bc7 {[%emt 0:04:18]} 30. Qe2 {[%emt 0:03:25]} Kh8 {[%emt 0:02:11]} 31. Nxf5 {[%emt 0:02:52]} exf5 {[%emt 0:00:23]} 32. Kg3 {[%emt 0:01:52]} Re8 {[%emt 0:01:29]} 33. Qd3 {[%emt 0:01:50]} Qd5 {[%emt 0:02:22]} 34. Rde1 {[%emt 0:01:28]} Re6 {[%emt 0:04:08]} 35. Rxe6 {[%emt 0:01:03]} Qxe6 {[%emt 0:00:18]} 36. Qc3 {[%emt 0:01:38]} Kg8 {[%emt 0:01:00]} 37. Qb3 {[%emt 0:00:54]} Qxb3+ {[%emt 0:00:24]} 38. axb3 Kf7 {[%emt 0:00:19]} 39. Re1 {[%emt 0:00:33]} a6 {[%emt 0:02:32]} 40. Re2 {[%emt 0:00:31]} Bd6 {[%emt 0:00:22]} 41. Re1 {[%emt 0:00:44]} Bc7 {[%emt 0:00:09]} 42. Re2 {[%emt 0:00:23]} Bd6 {[%emt 0:00:09]} 43. Re3 {[%emt 0:00:09]} Bc7 {[%emt 0:00:14]} 44. Re1 {[%emt 0:00:34]} Bd6 {[%emt 0:00:53]} 45. Re2 {[%emt 0:00:59]} Bb8 {[%emt 0:00:56]} 46. Re1 {[%emt 0:00:35]} 1/2-1/2